bitfinex/quotes_ETHUSD_20250625
["timestamp","ask_amount","ask_price","bid_price","bid_amount"]
[1750824418607,6.49910698,2447.1,2446.3,0.8963302]
[1750824418608,4.086642,2447.0,2446.3,0.8963302]
[1750824418913,4.086642,2447.0,2446.5,4.08739789]
[1750824419406,10.0,2447.0,2446.6,4.08728716]
[1750824419608,14.08663687,2447.0,2446.5,4.08738317]
[1750824420210,10.0,2447.0,2446.6,4.08727986]
[1750824420414,4.08574041,2447.6,2447.0,0.7823]
[1750824420621,0.8083,2447.7,2447.3,4.08611358]
[1750824420788,0.8083,2447.9,2447.4,4.08588472]
[1750824421120,11.86506595,2448.0,2447.4,4.86818472]
[1750824421279,11.86506595,2448.0,2447.4,8.14102042]
[1750824421484,4.08515454,2447.9,2447.4,8.14102042]
[1750824421685,11.86501684,2448.0,2447.4,8.14102042]
[1750824422611,4.08517214,2447.9,2447.4,4.0551357]
[1750824423115,4.08517214,2447.9,2447.5,0.67030089]
[1750824423878,4.08537048,2447.8,2447.5,0.67030089]
[1750824424413,4.08558018,2447.7,2447.5,0.67030089]
[1750824424612,4.08558018,2447.7,2447.4,2.3421357]
[1750824424922,4.08605643,2447.4,2446.9,2.4953]
[1750824425078,4.08597603,2447.4,2446.9,2.4953]
[1750824425282,4.08569846,2447.6,2446.9,6.58197773]
[1750824425490,7.4503,2447.7,2447.1,4.08638266]
[1750824425690,4.08581097,2447.5,2447.0,5.40895377]
[1750824425906,4.08570305,2447.6,2447.1,4.08645759]
[1750824428019,10.0,2447.9,2447.3,0.7977]
[1750824428331,12.6704373,2448.0,2447.3,4.88381831]
[1750824428484,12.6704373,2448.0,2447.5,4.08576137]
[1750824428997,12.67040317,2448.0,2447.5,4.08578958]
[1750824430287,4.08515092,2447.9,2447.4,6.28627552]
[1750824431509,12.67037274,2448.0,2447.5,4.08570028]
[1750824431809,11.86497274,2448.0,2447.5,4.08570028]
[1750824432117,7.78,2448.0,2447.6,4.08563485]
[1750824432325,11.86498346,2448.0,2447.5,5.20267602]
[1750824432828,7.78,2448.0,2447.5,1.11696758]
[1750824433034,11.86497181,2448.0,2447.5,5.2026309]
[1750824433328,7.78,2448.0,2447.6,4.08562303]
[1750824433515,7.78,2448.0,2447.6,5.23449985]
[1750824433818,11.8649752,2448.0,2447.6,1.14887682]
[1750824434030,7.78,2448.0,2447.6,5.2344817]
[1750824436933,7.78,2448.0,2447.7,4.89887854]
[1750824438039,21.86471979,2448.2,2447.7,4.89887854]
[1750824438641,7.78,2448.2,2447.7,6.02398465]
[1750824438841,7.78,2448.2,2447.8,4.08515712]
[1750824439133,7.78,2448.3,2447.9,4.08502896]
[1750824439340,7.78,2448.4,2447.7,1.93854735]
[1750824439506,7.78,2448.5,2448.2,4.08462883]
[1750824439705,7.78,2448.5,2448.1,0.8172]
[1750824439942,7.78,2448.5,2448.1,4.90199973]
[1750824440706,7.78,2448.5,2448.2,4.08461799]
[1750824441109,7.78,2448.5,2448.2,0.8986585]
[1750824441307,7.78,2448.5,2448.4,4.08429995]
[1750824441540,0.7557,2448.8,2448.4,4.08429995]
[1750824441838,7.78,2449.2,2448.4,4.08429995]
[1750824441839,8.5823,2449.2,2448.5,0.8223]
[1750824442017,7.4413,2449.5,2448.6,0.55]
[1750824442338,0.8023,2449.5,2449.1,4.08305095]
[1750824442502,4.88476604,2449.5,2449.0,4.08323388]
[1750824443035,4.88476604,2449.5,2448.4,8.351]
[1750824443036,4.08326613,2449.1,2448.3,0.7758]
[1750824443222,4.08345459,2449.0,2448.4,5.79520358]
[1750824444029,0.768,2448.8,2447.5,0.7758]
[1750824444231,4.08396707,2448.6,2447.5,0.7758]
[1750824444557,4.08473727,2448.2,2447.6,12.44147485]
[1750824444849,4.08478154,2448.2,2447.7,1.73030157]
[1750824445011,4.08478154,2448.2,2447.7,5.81570964]
[1750824445335,4.08478154,2448.2,2447.7,5.81568992]
[1750824445643,4.08453876,2448.3,2447.8,4.08525477]
[1750824445830,4.08464186,2448.2,2447.7,5.81570606]
[1750824446142,4.08464186,2448.2,2447.8,1.82572319]
[1750824446341,0.768,2448.6,2447.8,1.711]
[1750824446342,4.08413314,2448.5,2447.8,1.711]
[1750824446640,4.08455269,2448.3,2447.8,5.79626019]
[1750824446943,4.08452789,2448.3,2447.8,5.79628795]
[1750824447656,4.08452789,2448.3,2447.5,0.7758]
[1750824447657,4.08492922,2448.1,2447.5,0.7758]
[1750824447816,4.08508594,2448.0,2447.5,4.86152383]
[1750824448542,4.08560425,2447.7,2447.3,0.7758]
[1750824448838,4.85360425,2447.7,2447.1,16.37918518]
[1750824449056,4.85360425,2447.7,2447.2,2.04657564]
[1750824449234,4.08569622,2447.6,2447.2,2.04657564]
[1750824450359,4.08580526,2447.5,2447.2,2.04657564]
[1750824450559,4.08602308,2447.4,2447.1,11.517]
[1750824450755,4.08602308,2447.4,2447.1,1.711]
[1750824450959,0.768,2447.7,2446.8,0.7758]
[1750824450960,4.08628798,2447.3,2446.8,0.7758]
[1750824451138,4.85428798,2447.3,2446.8,0.7758]
[1750824451460,4.85414642,2447.3,2446.5,2.4868]
[1750824451761,4.08646969,2447.1,2446.2,0.7758]
[1750824452055,4.0872367,2446.7,2446.3,1.711]
[1750824452359,4.08730897,2446.6,2446.4,0.91398]
[1750824452853,4.08730897,2446.6,2446.3,1.711]
[1750824453437,4.08730897,2446.6,2446.2,0.7758]
[1750824453661,0.768,2446.8,2445.9,4.08839196]
[1750824453862,0.768,2446.8,2445.8,4.08860363]
[1750824454156,4.087802,2446.4,2445.9,1.40886036]
[1750824454366,4.0878258,2446.3,2445.9,1.40886036]
[1750824454963,4.08771316,2446.4,2445.9,1.40886036]
[1750824455843,4.08771316,2446.4,2445.9,5.49733457]
[1750824457669,4.08771316,2446.4,2445.9,1.40886036]
[1750824460262,4.08756445,2446.5,2446.1,0.7942]
[1750824460477,4.087646,2446.4,2446.1,0.7942]
[1750824460771,4.08790024,2446.3,2445.9,2.20306036]
[1750824461869,4.08808379,2446.2,2445.7,11.60584763]
[1750824463162,4.87084891,2446.3,2445.8,4.0885471]
[1750824463749,4.08814307,2446.1,2445.7,0.8321]
[1750824464064,4.08829078,2446.1,2445.6,8.397]
[1750824464444,4.08829078,2446.1,2445.6,9.80166557]
[1750824464649,4.08829078,2446.1,2445.6,13.89048809]
[1750824464849,4.08805025,2446.2,2445.7,4.08880016]
[1750824465471,4.87088555,2446.3,2445.8,4.08859962]
[1750824466068,4.08797438,2446.2,2445.7,4.0887373]
[1750824466770,4.87088239,2446.3,2445.8,4.08861991]
[1750824467372,4.08797499,2446.2,2445.8,4.08861991]
[1750824468079,4.87089083,2446.3,2445.8,4.08861991]
[1750824469945,4.87089083,2446.3,2445.9,4.08847373]
[1750824470351,7.78,2446.5,2445.9,0.81772448]
[1750824470551,0.8157,2446.8,2445.8,4.08850576]
[1750824470552,4.08723733,2446.7,2446.2,4.91463748]
[1750824470755,10.0,2446.6,2446.2,4.91463748]
[1750824471162,0.8157,2446.8,2446.3,4.08766756]
[1750824471364,0.8157,2446.8,2446.4,4.08756795]
[1750824471575,10.8157,2446.8,2446.4,4.08756795]
[1750824472583,10.8157,2446.8,2446.2,4.91473863]
[1750824472782,0.8157,2445.2,2444.0,1.834]
[1750824472949,10.8157,2445.2,2444.2,0.2224638]
[1750824473153,4.089901,2445.1,2444.2,0.2224638]
[1750824473447,9.2049524,2445.7,2445.0,4.08996124]
[1750824473448,4.90462406,2445.7,2445.0,4.08996124]
[1750824473658,10.0,2445.6,2445.0,4.08996124]
[1750824474074,4.90455751,2445.7,2445.1,4.08970603]
[1750824474274,4.08917061,2445.5,2445.2,1.834]
[1750824474587,4.08904947,2445.6,2445.2,1.834]
[1750824474789,4.90456618,2445.7,2445.2,1.834]
[1750824474790,4.08914994,2445.5,2445.2,1.834]
[1750824474977,4.08899999,2445.6,2445.2,2.42639446]
[1750824475675,4.08899999,2445.6,2445.2,3.20339446]
[1750824476281,10.0,2445.8,2445.2,7.29295263]
[1750824476451,14.08866786,2445.8,2445.2,3.20339446]
[1750824476788,4.08898952,2445.6,2445.3,1.834]
[1750824476949,4.08898952,2445.6,2445.3,2.5633129]
[1750824478385,4.08898952,2445.6,2445.3,1.834]
[1750824478591,4.08916295,2445.5,2445.3,1.834]
[1750824479666,4.08884252,2445.7,2445.3,1.834]
[1750824480161,4.08845076,2446.0,2445.4,4.90432006]
[1750824480381,4.08857083,2445.9,2445.5,0.67383201]
[1750824480600,4.08839081,2446.0,2445.4,4.90440007]
[1750824481093,4.08852094,2445.9,2445.4,0.8151]
[1750824481292,4.08852094,2445.9,2445.4,4.90440857]
[1750824481463,4.08823608,2446.1,2445.5,4.08914332]
[1750824481666,4.08831519,2446.0,2445.5,4.08906963]
[1750824481872,14.08822158,2446.1,2445.6,4.9882762]
[1750824482269,11.32129119,2446.4,2445.7,0.7686]
[1750824482470,6.85601934,2446.4,2445.9,4.08843609]
[1750824482764,4.08788773,2446.3,2445.8,5.92255211]
[1750824482963,4.08788773,2446.3,2445.9,0.66911521]
[1750824485764,6.85601527,2446.4,2445.9,4.75757356]
[1750824485980,2.76829119,2446.4,2446.0,4.08830441]
[1750824486180,2.76829119,2446.4,2446.1,4.08812574]
[1750824486373,2.76829119,2446.4,2446.2,0.48805257]
[1750824486584,2.76829119,2446.4,2446.0,4.88064728]
[1750824487079,4.08751486,2446.5,2446.0,4.88064728]
[1750824487717,4.08764308,2446.4,2446.0,0.7924]
[1750824488008,4.08754627,2446.5,2446.0,4.88069322]
[1750824488412,4.08749296,2446.5,2446.0,4.88058344]
[1750824488610,4.08749296,2446.5,2446.1,0.96380806]
[1750824489405,14.08731657,2446.6,2446.1,0.96380806]
[1750824489606,4.08747189,2446.5,2446.1,1.834]
[1750824489777,4.08755964,2446.5,2446.1,1.834]
[1750824490489,4.08765849,2446.4,2446.1,1.834]
[1750824490886,10.0,2446.6,2446.1,1.834]
[1750824491200,4.08789604,2446.3,2446.1,1.834]
[1750824492097,7.78,2446.7,2446.2,0.7663]
[1750824492304,7.78,2446.7,2446.3,4.08766625]
[1750824492603,7.78,2446.7,2446.4,4.08762481]
[1750824493682,21.67976261,2447.0,2446.2,4.85427318]
[1750824493886,14.0870615,2446.8,2446.3,4.08779565]
[1750824495516,10.0,2446.8,2446.4,4.08761051]
[1750824496703,4.08697893,2446.8,2446.3,4.08774463]
[1750824498701,4.08653698,2447.1,2446.4,0.7777]
[1750824498906,4.08653698,2447.1,2446.6,4.087288]
[1750824499107,4.08653698,2447.1,2446.7,1.834]
[1750824499723,14.89699648,2447.2,2446.7,1.834]
[1750824499883,13.75949965,2447.2,2446.3,1.88150673]
[1750824500235,4.08688365,2446.9,2446.4,5.92161997]
[1750824503118,17.03522943,2447.2,2446.7,4.08704977]
[1750824503490,12.94889965,2447.2,2446.5,4.86438493]
[1750824503689,12.94889965,2447.2,2446.5,5.6446041]
[1750824503886,4.08649096,2447.1,2446.6,4.08722126]
[1750824504924,4.08664589,2447.0,2446.6,4.08722126]
[1750824505095,4.08664589,2447.0,2446.5,4.86440683]
[1750824510496,0.8142,2447.1,2446.4,5.9215483]
[1750824510702,4.0868766,2446.9,2446.5,1.806]
[1750824510911,0.8024,2446.9,2446.1,0.7791]
[1750824511111,0.8024,2446.2,2445.5,0.7791]
[1750824511316,4.08839353,2446.0,2445.5,6.67415099]
[1750824511511,0.8024,2446.2,2445.6,4.08889989]
[1750824511701,0.8024,2446.2,2445.6,1.07630509]
[1750824511896,4.89047575,2446.2,2445.7,5.89478678]
[1750824513732,4.08814311,2446.1,2445.7,5.89478678]
[1750824513906,4.08814311,2446.1,2445.7,1.806]
[1750824515735,4.08836775,2446.0,2445.7,1.806]
[1750824515931,4.08830744,2446.0,2445.5,0.7791]
[1750824516136,4.08830744,2446.0,2445.6,1.806]
[1750824517121,0.8024,2446.2,2445.6,1.806]
[1750824517314,4.08838604,2446.0,2445.6,2.47340789]
[1750824517515,4.08842748,2446.0,2445.6,1.806]
[1750824519106,4.08853858,2445.9,2445.6,1.806]
[1750824519306,4.08865497,2445.8,2445.6,1.806]
[1750824519503,4.88292336,2446.0,2445.4,1.806]
[1750824519721,4.08942336,2445.4,2445.0,1.806]
[1750824519917,4.08947835,2445.3,2445.0,1.806]
[1750824520123,4.08931054,2445.4,2445.0,1.806]
[1750824520322,4.08958423,2445.3,2445.0,1.806]
[1750824520817,4.08962674,2445.3,2445.0,1.806]
[1750824522336,4.08982302,2445.1,2445.0,1.806]
[1750824522530,0.7946,2445.5,2445.0,1.806]
[1750824522749,4.089404,2445.4,2445.0,1.806]
[1750824523234,4.88385168,2445.5,2445.0,1.806]
[1750824523439,0.7946,2445.5,2445.1,4.08981007]
[1750824523641,4.08905771,2445.6,2445.1,4.86591007]
[1750824524371,4.08915364,2445.5,2445.1,0.7761]
[1750824524535,4.08904626,2445.6,2445.1,4.86590728]
[1750824525220,5.53451986,2445.6,2445.1,0.7761]
[1750824525420,4.08935083,2445.4,2445.0,1.806]
[1750824525719,4.08935083,2445.4,2444.4,0.7577]
[1750824525720,4.09032623,2444.8,2444.4,0.7577]
[1750824525942,4.09027044,2444.9,2444.4,4.84866152]
[1750824526245,4.09032923,2444.8,2444.4,0.7577]
[1750824526553,4.86582923,2444.8,2444.4,0.7577]
[1750824527854,4.86582923,2444.8,2444.3,5.89706866]
[1750824528157,4.09019213,2444.9,2444.4,4.09091517]
[1750824529652,4.09019213,2444.9,2444.4,5.89791517]
[1750824529836,4.90465294,2445.0,2444.5,4.09080537]
[1750824531772,4.90465294,2445.0,2444.4,1.807]
[1750824531920,7.78,2445.4,2444.4,1.807]
[1750824532121,10.0,2445.1,2444.6,4.09057245]
[1750824532348,10.0,2445.1,2444.7,4.09040103]
[1750824532550,10.0,2445.3,2444.9,0.785]
[1750824532721,16.76829269,2445.3,2444.9,0.785]
[1750824533066,4.0898469,2445.1,2444.6,4.87555708]
[1750824533268,4.0898469,2445.1,2444.4,4.09091472]
[1750824533269,4.09020477,2444.9,2444.4,4.09091613]
[1750824533568,4.49922525,2444.9,2444.6,1.793]
[1750824533955,4.49922525,2444.9,2444.3,4.84866963]
[1750824534154,4.49922525,2444.9,2444.4,1.793]
[1750824534155,4.87871413,2444.8,2444.4,1.793]
[1750824534327,4.09069281,2444.6,2444.4,1.793]
[1750824534951,4.0905675,2444.7,2444.4,1.793]
[1750824535159,4.87880632,2444.8,2444.4,1.793]
[1750824535327,4.09055715,2444.7,2444.4,1.793]
[1750824536226,0.93781787,2444.7,2444.2,0.2224638]
[1750824536558,4.09115084,2444.3,2444.2,0.2224638]
[1750824536859,14.09115084,2444.3,2444.2,0.2224638]
[1750824537064,21.66265084,2444.3,2444.2,0.2224638]
[1750824537647,21.71265084,2444.3,2444.2,0.2224638]
[1750824538156,21.71865084,2444.3,2444.2,0.2224638]
[1750824538337,24.47891618,2444.3,2444.2,0.2224638]
[1750824538777,17.64091618,2444.3,2444.2,0.2224638]
[1750824538928,24.48191618,2444.3,2444.2,0.2224638]
[1750824539727,34.25113127,2444.3,2444.2,0.2224638]
[1750824541469,26.86013127,2444.3,2444.2,0.2224638]
[1750824541656,35.49213127,2444.3,2444.2,0.2224638]
[1750824541854,35.49313127,2444.3,2444.2,0.2224638]
[1750824542052,26.86013127,2444.3,2444.2,0.2224638]
[1750824542258,24.47991618,2444.3,2444.2,0.2224638]
[1750824544531,33.69913127,2444.3,2444.2,0.2224638]
[1750824545332,33.69913127,2444.3,2441.9,4.09796203]
[1750824545333,4.09425355,2442.5,2441.9,4.09796203]
[1750824545537,11.9397432,2444.2,2441.9,4.09796203]
[1750824545538,10.0,2443.2,2442.3,4.09441653]
[1750824545737,4.0937411,2442.8,2442.3,4.09441653]
[1750824546040,4.0937411,2442.8,2442.3,4.66481113]
[1750824546680,13.31205393,2443.3,2442.3,4.66481113]
[1750824546681,6.887,2443.7,2442.4,2.5682]
[1750824546887,4.09286868,2443.3,2442.7,4.09369735]
[1750824547240,4.91127532,2443.4,2442.5,6.6622953]
[1750824547241,4.09328826,2443.1,2442.5,6.6622953]
[1750824547577,4.09333243,2443.0,2442.5,4.8682953]
[1750824547746,4.09352089,2442.9,2442.5,0.7742]
[1750824548075,4.09304703,2443.2,2442.5,2.5682]
[1750824548275,4.09304703,2443.2,2442.7,4.09380998]
[1750824549175,0.7756,2443.3,2442.3,1.3372946]
[1750824549387,4.09335542,2443.0,2442.4,1.794]
[1750824549570,10.0,2443.1,2442.0,0.005]
[1750824549890,4.09392268,2442.7,2442.2,0.807]
[1750824550181,4.09387881,2442.7,2442.2,0.807]
[1750824550671,0.7597,2443.4,2442.2,1.88657567]
[1750824550967,4.09334942,2443.0,2442.5,4.09406161]
[1750824551139,4.09334942,2443.0,2442.6,0.8292]
[1750824552269,4.09324345,2443.1,2442.6,0.8292]
[1750824552473,14.09309321,2443.2,2442.6,4.92307255]
[1750824553173,4.09292004,2443.3,2442.6,0.8292]
[1750824553352,4.09292004,2443.3,2442.8,4.09354837]
[1750824553547,4.09292004,2443.3,2442.7,4.09375394]
[1750824553952,4.092272,2443.7,2442.7,1.08109082]
[1750824554154,4.092272,2443.7,2443.2,4.09291191]
[1750824554155,4.09215885,2443.7,2443.2,4.09291191]
[1750824554586,4.09201324,2443.8,2443.3,4.91381435]
[1750824554871,4.09182045,2443.9,2443.3,0.8211]
[1750824555083,4.09223963,2443.7,2443.3,0.8211]
[1750824555286,5.27484544,2443.8,2442.4,0.7804]
[1750824555287,4.09349543,2442.9,2442.4,0.7804]
[1750824555452,10.0,2442.8,2442.4,0.7804]
[1750824555654,4.09394252,2442.7,2442.4,0.7804]
[1750824555854,4.0937394,2442.8,2442.4,0.7804]
[1750824556461,4.09386,2442.7,2442.4,0.7804]
[1750824557561,7.7283,2443.2,2442.4,0.7804]
[1750824557861,4.09357711,2442.9,2442.4,4.8746378]
[1750824558062,10.0,2442.8,2442.4,4.8746378]
[1750824558284,4.09369907,2442.8,2442.4,0.7804]
[1750824560979,14.0935703,2442.9,2442.4,4.87472669]
[1750824561179,10.0,2442.9,2442.5,4.09416361]
[1750824561391,14.09350198,2442.9,2442.4,4.87465638]
[1750824561615,10.0,2442.9,2442.5,4.09413877]
[1750824561819,7.78,2443.0,2442.7,0.7972]
[1750824562177,7.78,2443.7,2442.8,1.875]
[1750824562374,7.78,2443.7,2443.2,4.89007702]
[1750824562573,1.18284204,2443.8,2443.2,4.89007702]
[1750824562574,13.05491028,2443.8,2443.2,4.89007702]
[1750824562772,11.87206824,2443.8,2443.2,4.89007702]
[1750824563280,9.21921509,2443.5,2442.5,0.7677]
[1750824563506,4.09349543,2442.9,2442.5,0.7677]
[1750824563700,4.093663,2442.8,2442.5,0.7677]
[1750824564204,0.7828,2443.0,2442.5,0.7677]
[1750824564417,4.0936836,2442.8,2442.5,0.7677]
[1750824566878,10.0,2442.9,2442.5,0.7677]
[1750824567175,4.09373941,2442.8,2442.5,0.7677]
[1750824570624,14.09358774,2442.9,2442.5,0.7677]
[1750824571426,14.09340566,2443.0,2442.5,4.86185227]
[1750824571591,14.09333663,2443.0,2442.5,0.7677]
[1750824571791,14.09333663,2443.0,2442.7,4.09381805]
[1750824571792,10.0,2443.0,2442.7,4.09381805]
[1750824572429,7.7123,2443.4,2442.7,4.09381805]
[1750824572430,0.7843,2443.8,2442.9,0.7801]
[1750824572601,0.7843,2443.8,2443.0,4.09332392]
[1750824572602,4.09258339,2443.5,2443.0,4.09332392]
[1750824572804,10.0,2443.6,2442.9,0.7801]
[1750824573024,4.09250403,2443.5,2443.0,4.09322221]
[1750824573320,4.09241769,2443.6,2443.1,4.09313899]
[1750824573523,4.94866999,2443.7,2443.2,4.0929793]
[1750824573722,4.94866999,2443.7,2443.3,0.7801]
[1750824574028,4.09223999,2443.7,2443.3,0.7801]
[1750824574327,10.0,2443.6,2443.3,0.7801]
[1750824575824,7.78,2443.9,2443.3,0.7801]
[1750824575999,11.87181784,2444.0,2443.5,4.09240311]
[1750824577631,10.0,2443.3,2442.5,0.8077]
[1750824577797,4.09393661,2442.7,2442.3,0.8077]
[1750824579029,4.09373466,2442.8,2442.3,4.90219432]
[1750824579527,4.09384608,2442.7,2442.3,0.8077]
[1750824579727,4.0937304,2442.8,2442.3,4.90219218]
[1750824579926,4.0937304,2442.8,2442.3,0.8077]
[1750824580227,4.09386611,2442.7,2442.3,0.8077]
[1750824581625,0.81872466,2442.8,2442.3,4.90217116]
[1750824581626,4.91247865,2442.8,2442.3,4.90217116]
[1750824581826,4.09375399,2442.8,2442.3,4.90217116]
[1750824582710,4.09384508,2442.7,2442.3,0.8077]
[1750824583421,4.09375301,2442.8,2442.3,0.8077]
[1750824583926,4.09375301,2442.8,2442.3,4.90219782]
[1750824585101,4.09368935,2442.8,2442.3,4.90219782]
[1750824588028,4.09384422,2442.7,2442.3,0.8077]
[1750824588234,4.09374992,2442.8,2442.3,0.8077]
[1750824588528,4.09385565,2442.7,2442.3,0.8077]
[1750824589627,4.91248303,2442.8,2442.3,4.902168]
[1750824591327,0.81872608,2442.8,2442.4,4.09424862]
[1750824591518,4.09365445,2442.9,2442.4,4.09424862]
[1750824591825,4.09367159,2442.8,2442.3,4.90212124]
[1750824593045,4.09367159,2442.8,2442.0,16.952]
[1750824593046,10.8249,2442.6,2442.0,0.005]
[1750824593201,4.09474173,2442.2,2442.0,0.005]
[1750824593404,4.09459823,2442.3,2442.0,0.005]
[1750824593598,4.09474981,2442.2,2442.0,0.005]
[1750824595822,4.09483641,2442.1,2442.0,0.005]
[1750824597303,4.88463641,2442.1,2442.0,0.005]
[1750824597505,4.88356723,2442.1,2442.0,0.005]
[1750824599819,14.88356723,2442.1,2442.0,0.005]
[1750824600049,24.63638728,2442.1,2442.0,0.005]
[1750824603057,32.40738728,2442.1,2442.0,0.005]
[1750824603251,29.63056723,2442.1,2442.0,0.005]
[1750824604258,22.66356723,2442.1,2442.0,0.005]
[1750824604437,29.63356723,2442.1,2442.0,0.005]
[1750824605658,29.63356723,2442.1,2440.3,0.005]
[1750824605659,4.0976889,2440.4,2440.3,0.005]
[1750824605956,11.0946889,2440.4,2440.3,0.005]
[1750824607062,4.0976889,2440.4,2440.3,0.005]
[1750824607272,4.09704502,2440.8,2440.3,0.005]
[1750824607273,4.09701737,2440.8,2440.3,0.8192]
[1750824607474,10.0,2440.9,2440.4,4.09757795]
[1750824607637,10.0,2440.9,2440.5,0.4916778]
[1750824607961,10.0,2440.9,2440.4,4.09757795]
[1750824607962,10.0,2440.9,2440.3,0.8192]
[1750824608166,4.09711563,2440.8,2440.3,0.8192]
[1750824608467,4.24507081,2441.7,2440.4,0.8267]
[1750824608636,4.24507081,2441.7,2440.5,4.09742979]
[1750824608637,4.09645474,2441.2,2440.5,4.09742979]
[1750824608966,14.8620889,2440.4,2440.3,0.005]
[1750824609263,22.4360889,2440.4,2440.3,0.005]
[1750824609464,21.8860889,2440.4,2440.3,0.005]
[1750824609670,21.9310889,2440.4,2440.3,0.005]
[1750824609871,24.53395216,2440.4,2440.3,0.005]
[1750824610853,17.46495216,2440.4,2440.3,0.005]
[1750824611054,24.53395216,2440.4,2440.3,0.005]
[1750824613251,24.52095216,2440.4,2440.3,0.005]
[1750824615975,21.1446889,2440.4,2440.3,0.005]
[1750824616272,14.0976889,2440.4,2440.3,0.005]
[1750824616475,1.1849873,2440.9,2440.3,0.7781]
[1750824616641,1.1849873,2440.9,2440.4,4.09761005]
[1750824616836,1.1849873,2440.9,2440.5,0.89734623]
[1750824617258,1.1849873,2440.9,2440.5,4.99484249]
[1750824617639,1.1849873,2440.9,2440.6,4.09735241]
[1750824617848,4.09704211,2440.8,2440.5,0.89734623]
[1750824618068,4.09704211,2440.8,2440.3,0.7781]
[1750824618444,4.09704211,2440.8,2440.3,4.87594772]
[1750824618644,1.1849873,2440.9,2440.3,0.7781]
[1750824618864,4.09709575,2440.8,2440.3,0.7781]
[1750824619077,4.09709575,2440.8,2440.3,4.8759564]
[1750824619457,5.28192527,2440.9,2440.3,7.84781998]
[1750824619775,4.09704997,2440.8,2440.3,7.84781998]
[1750824620462,1.1849873,2440.9,2440.3,7.84775257]
[1750824620664,1.1849873,2440.9,2440.3,2.97686358]
[1750824620863,1.1849873,2440.9,2440.7,4.09710926]
[1750824621065,1.1849873,2440.9,2440.8,0.7782]
[1750824622245,1.1849873,2440.9,2440.8,4.87521737]
[1750824622456,1.1849873,2440.9,2440.8,6.82021737]
[1750824626150,1.1849873,2440.9,2440.3,0.005]
[1750824626151,14.0976889,2440.4,2440.3,0.005]
[1750824626346,16.27745779,2440.4,2440.3,0.005]
[1750824631353,24.05745779,2440.4,2440.3,0.005]
[1750824631655,24.60745779,2440.4,2440.3,0.005]
[1750824631858,24.05745779,2440.4,2440.3,0.005]
[1750824637966,31.11745779,2440.4,2440.3,0.005]
[1750824644698,24.05745779,2440.4,2440.3,0.005]
[1750824644902,31.09345779,2440.4,2440.3,0.005]
[1750824646677,31.08645779,2440.4,2440.3,0.005]
[1750824646879,30.31645779,2440.4,2440.3,0.005]
[1750824650098,23.28745779,2440.4,2440.3,0.005]
[1750824650422,30.29945779,2440.4,2440.3,0.005]
[1750824661323,31.64765779,2440.4,2440.3,0.005]
[1750824662339,31.60865779,2440.4,2440.3,0.005]
[1750824668347,38.14326937,2440.4,2440.3,0.005]
[1750824668546,31.17026937,2440.4,2440.3,0.005]
[1750824668752,40.05526937,2440.4,2440.3,0.005]
[1750824672104,31.02765779,2440.4,2440.3,0.005]
[1750824672304,37.56226937,2440.4,2440.3,0.005]
[1750824674040,37.52170142,2440.4,2440.3,0.005]
[1750824675434,38.07170142,2440.4,2440.3,0.005]
[1750824682346,37.52170142,2440.4,2440.3,0.005]
[1750824682853,37.49370142,2440.4,2440.3,0.005]
[1750824683068,30.57970142,2440.4,2440.3,0.005]
[1750824683341,28.74612095,2440.4,2440.3,0.005]
[1750824684340,21.83712095,2440.4,2440.3,0.005]
[1750824684644,28.74612095,2440.4,2440.3,0.005]
[1750824685537,21.83712095,2440.4,2440.3,0.005]
[1750824685741,28.74312095,2440.4,2440.3,0.005]
[1750824687262,28.73912095,2440.4,2440.3,0.005]
[1750824687612,21.83712095,2440.4,2440.3,0.778]
[1750824687809,28.73312095,2440.4,2440.3,0.778]
[1750824690615,7.78,2440.4,2440.3,0.778]
[1750824690827,4.09743633,2440.6,2440.3,0.778]
[1750824691044,10.99025371,2440.7,2440.3,0.778]
[1750824691217,10.0,2440.6,2440.5,0.7672]
[1750824691824,16.894,2440.7,2440.5,0.7672]
[1750824692015,16.893,2440.7,2440.5,0.7672]
[1750824692513,7.75330508,2441.0,2440.5,0.7672]
[1750824692514,1.2186935,2441.0,2440.5,0.7672]
[1750824692717,4.09726249,2440.7,2440.5,0.7672]
[1750824693514,4.0973531,2440.6,2440.5,0.7672]
[1750824693714,10.9873531,2440.6,2440.5,0.7672]
[1750824697898,4.0976889,2440.4,2440.3,0.005]
[1750824698089,21.0136889,2440.4,2440.3,0.005]
[1750824699378,21.0166889,2440.4,2440.3,0.005]
[1750824706432,14.0976889,2440.4,2440.3,0.005]
[1750824706668,21.0006889,2440.4,2440.3,0.005]
[1750824707262,28.7806889,2440.4,2440.3,0.005]
[1750824707465,28.7766889,2440.4,2440.3,0.005]
[1750824711163,21.8776889,2440.4,2440.3,0.005]
[1750824711369,28.7716889,2440.4,2440.3,0.005]
[1750824712361,32.71207428,2440.4,2440.3,0.005]
[1750824714279,28.7716889,2440.4,2440.3,0.005]
[1750824726371,28.7376889,2440.4,2440.3,0.005]
[1750824728574,29.2876889,2440.4,2440.3,0.005]
[1750824732322,30.0883889,2440.4,2440.3,0.005]
[1750824732604,4.89889269,2440.1,2440.0,0.02]
[1750824732772,18.27750427,2440.1,2440.0,0.02]
[1750824733803,26.05750427,2440.1,2440.0,0.02]
[1750824735412,27.91250427,2440.1,2440.0,0.02]
[1750824742571,27.85850427,2440.1,2440.0,0.02]
[1750824742772,29.0825095,2440.1,2440.0,0.02]
[1750824742973,20.4375095,2440.1,2440.0,0.02]
[1750824743188,19.6368095,2440.1,2440.0,0.02]
[1750824743395,26.4628095,2440.1,2440.0,0.02]
[1750824743871,28.2808095,2440.1,2440.0,0.02]
[1750824744672,19.6368095,2440.1,2440.0,0.02]
[1750824744910,26.4618095,2440.1,2440.0,0.02]
[1750824745208,19.6368095,2440.1,2440.0,0.02]
[1750824745379,7.78,2440.1,2440.0,0.02]
[1750824745584,24.603,2440.1,2440.0,0.02]
[1750824746212,24.603,2440.1,2440.0,0.78]
[1750824746408,28.70119269,2440.1,2440.0,0.78]
[1750824746721,24.603,2440.1,2440.0,0.78]
[1750824747214,24.602,2440.1,2440.0,0.78]